bitfinex-derivatives/quotes_SOLF0:USTF0_20250509
["timestamp","ask_amount","ask_price","bid_price","bid_amount"]
[1746813629100,29.14,172.02,171.95,5.7179]
[1746813636107,29.04,172.06,171.95,372.27628511]
[1746813637008,29.04,172.06,171.95,362.7179]
[1746813638603,38.59838511,172.06,171.95,362.7179]
[1746813638811,38.59838511,172.06,171.95,360.7493]
[1746813640211,38.59838511,172.06,171.95,3.7493]
[1746813640915,38.59838511,172.06,171.94,1.0]
[1746813641914,9.55838511,172.03,171.94,1.0]
[1746813642112,29.0,172.02,171.94,1.0]
[1746813642312,29.04,172.01,171.94,1.0]
[1746813651623,9.55838511,172.0,171.94,1.0]
[1746813652223,5.8153,171.95,171.94,1.0]
[1746813652413,34.8553,171.95,171.94,1.0]
[1746813659822,29.04,171.95,171.94,1.0]
[1746813661232,29.04,171.95,171.94,6.8156]
[1746813661428,28.94,171.99,171.94,1.0]
[1746813661634,28.94,172.01,171.94,1.0]
[1746813662427,5.8144,171.98,171.94,6.8155]
[1746813662838,5.8144,171.98,171.94,1.0]
[1746813664635,5.8144,171.98,171.94,6.8154]
[1746813664833,5.8147,171.97,171.94,1.0]
[1746813665133,28.94,172.01,171.94,1.0]
[1746813665334,5.8142,171.99,171.94,1.0]
[1746813665533,28.94,172.01,171.94,1.0]
[1746813665732,28.92,172.0,171.94,1.0]
[1746813665925,5.8143,171.98,171.94,1.0]
[1746813666337,5.8143,171.98,171.94,6.8154]
[1746813667839,28.92,172.0,171.94,1.0]
[1746813668338,5.8144,171.98,171.94,1.0]
[1746813668833,28.92,172.0,171.94,6.8154]
[1746813669039,5.8147,171.97,171.94,6.8154]
[1746813669237,28.92,172.0,171.94,6.8154]
[1746813669547,38.47838511,172.0,171.94,1.0]
[1746813669929,5.8153,171.95,171.94,1.0]
[1746813670231,34.7553,171.95,171.94,1.0]
[1746813671644,63.6553,171.95,171.94,1.0]
[1746813671843,5.8173,171.9,171.88,1.0]
[1746813672045,67.39838511,171.95,171.88,1.0]
[1746813672341,57.84,171.95,171.88,1.0]
[1746813672545,5.8157,171.94,171.9,5.817]
[1746813672733,9.55838511,171.98,171.88,1.0]
[1746813672934,5.8153,171.95,171.91,5.8164]
[1746813673141,57.84,171.97,171.91,5.8164]
[1746813673340,57.84,171.97,171.88,1.0]
[1746813673541,63.6547,171.97,171.88,1.0]
[1746813673745,63.6547,171.97,171.91,5.8164]
[1746813674039,63.6547,171.97,171.88,1.0]
[1746813674245,5.815,171.96,171.92,5.8161]
[1746813674839,5.8157,171.94,171.9,5.817]
[1746813676541,57.84,171.97,171.9,5.817]
[1746813676744,5.8154,171.95,171.91,5.8165]
[1746813676942,57.84,171.97,171.88,1.0]
[1746813677145,5.8153,171.95,171.91,5.8165]
[1746813677443,5.8153,171.95,171.88,1.0]
[1746813677744,5.8153,171.95,171.9,5.817]
[1746813677940,5.8157,171.94,171.9,5.817]
[1746813678147,9.55838511,171.96,171.88,1.0]
[1746813678346,9.55838511,171.96,171.89,5.8173]
[1746813678551,5.8165,171.92,171.88,1.0]
[1746813678748,34.7565,171.92,171.88,1.0]
[1746813678948,57.84,171.92,171.88,1.0]
[1746813681550,5.8169,171.91,171.88,1.0]
[1746813682048,5.8173,171.89,171.88,1.0]
[1746813682247,9.55838511,171.9,171.86,1.0]
[1746813682652,5.8194,171.83,171.79,7.7087]
[1746813682950,28.94,171.84,171.79,1.8881]
[1746813683145,57.82,171.83,171.79,1.8881]
[1746813683748,5.8199,171.82,171.78,7.6652]
[1746813686347,57.82,171.83,171.81,5.8199]
[1746813686552,28.94,171.83,171.78,1.8442]
[1746813686942,28.96,171.94,171.78,30.7242]
[1746813687146,30.22,172.01,171.88,9.55597038]
[1746813687344,1.16279069,172.0,171.95,5.8152]
[1746813687755,1.16279069,172.0,171.9,9.55348811]
[1746813687953,6.97649069,172.0,171.9,9.55348811]
[1746813688153,1.16279069,172.0,171.9,9.55348811]
[1746813688351,1.16279069,172.0,171.89,5.8174]
[1746813688550,5.8146,171.98,171.89,5.8174]
[1746813688746,30.22,172.01,171.89,5.8174]
[1746813688957,5.815,171.96,171.9,5.817]
[1746813689257,30.22,171.96,171.89,5.8174]
[1746813689758,36.035,171.96,171.89,5.8174]
[1746813690055,30.22,171.96,171.89,5.8174]
[1746813690355,30.22,171.96,171.9,5.8167]
[1746813691857,30.22,171.96,171.91,5.8165]
[1746813692059,30.22,171.96,171.89,5.8174]
[1746813692457,30.22,171.96,171.91,5.8163]
[1746813692759,30.22,171.96,171.89,5.8174]
[1746813693657,30.22,171.96,171.92,5.816]
[1746813693854,30.22,171.96,171.89,5.8174]
[1746813695157,30.22,171.96,171.95,5.8153]
[1746813696158,502.88,172.03,171.89,5.8174]
[1746813696350,30.2,172.01,171.89,362.8174]
[1746813697460,30.2,172.01,171.95,5.815]
[1746813697662,5.8137,172.0,171.95,5.815]
[1746813697961,5.8137,172.0,171.96,5.8149]
[1746813698159,5.814,171.99,171.96,5.8149]
[1746813698461,5.814,171.99,171.89,5.8174]
[1746813698654,5.814,171.99,171.89,362.8174]
[1746813698958,5.8137,172.0,171.96,5.8149]
[1746813699151,30.2,172.01,171.89,5.8174]
[1746813699660,5.8136,172.0,171.89,5.8174]
[1746813700258,5.8136,172.0,171.89,36.3774]
[1746813700460,30.2,172.01,171.89,5.8174]
[1746813700960,45.49281609,172.01,171.89,5.8174]
[1746813701665,5.8149,171.97,171.92,5.8162]
[1746813701858,60.76,171.96,171.92,5.8162]
[1746813702559,60.76,171.96,171.91,5.8166]
[1746813703162,66.5752,171.96,171.91,5.8166]
[1746813703359,60.76,171.96,171.91,5.8166]
[1746813703960,5.8156,171.95,171.9,5.8169]
[1746813705157,60.76,171.96,171.89,7.7907]
[1746813705362,60.76,171.96,171.84,360.867]
[1746813705664,5.8161,171.93,171.88,5.8174]
[1746813705962,60.76,171.96,171.84,5.8162]
[1746813706560,5.8163,171.93,171.88,5.8175]
[1746813707461,60.76,171.96,171.87,5.8179]
[1746813708261,60.76,171.96,171.84,5.8162]
[1746813708463,15.29281609,171.93,171.8,1.9132]
[1746813708862,5.8184,171.86,171.82,5.8195]
[1746813709065,36.0184,171.86,171.82,5.8195]
[1746813709765,30.2,171.86,171.82,5.8195]
[1746813710365,30.2,171.86,171.8,1.9132]
[1746813711262,30.2,171.86,171.78,3.8748]
[1746813711460,30.2,171.86,171.78,5.8607]
[1746813711766,30.2,171.86,171.83,5.8191]
[1746813712166,30.2,171.86,171.78,5.8607]
[1746813712362,5.8192,171.84,171.78,5.8607]
[1746813713473,5.8188,171.85,171.78,5.8607]
[1746813714570,5.8188,171.85,171.82,5.8195]
[1746813714763,5.8188,171.85,171.78,5.8607]
[1746813714764,36.0185,171.86,171.78,5.8607]
[1746813715465,5.8187,171.85,171.82,5.8195]
[1746813716370,30.2,171.86,171.78,3.8748]
[1746813716867,5.82,171.82,171.78,9.6957]
[1746813717067,30.2,171.86,171.78,9.6957]
[1746813717476,5.8201,171.81,171.78,5.8209]
[1746813717866,30.2,171.86,171.78,5.8209]
[1746813718168,30.2,171.86,171.79,5.8207]
[1746813718169,5.8196,171.83,171.79,5.8207]
[1746813718468,29.9,171.82,171.76,1.0]
[1746813718663,29.94,171.81,171.76,1.0]
[1746813718872,35.7603,171.81,171.77,5.8213]
[1746813719166,29.94,171.81,171.76,1.0]
[1746813719470,5.8205,171.8,171.77,5.8214]
[1746813720370,29.94,171.81,171.76,1.0]
[1746813721471,5.8214,171.77,171.76,1.0]
[1746813722474,35.5814,171.77,171.76,1.0]
[1746813722970,29.76,171.77,171.64,1.992]
[1746813723171,29.94,171.76,171.64,5.7957]
[1746813723369,29.94,171.76,171.66,5.8249]
[1746813723969,5.8235,171.71,171.66,5.8249]
[1746813724173,29.94,171.7,171.64,5.7957]
[1746813725372,29.94,171.7,171.64,3.8037]
[1746813725874,29.94,171.7,171.63,1.0]
[1746813726070,45.23281609,171.7,171.63,1.0]
[1746813726268,5.8257,171.65,171.63,1.0]
[1746813726569,503.12,171.7,171.63,1.0]
[1746813726771,65.4243,171.69,171.65,5.8252]
[1746813726971,59.6,171.69,171.63,1.0]
[1746813728477,5.8257,171.65,171.63,1.0]
[1746813728680,29.96,171.64,171.63,1.0]
[1746813732276,503.12,171.7,171.63,1.0]
[1746813732474,59.5,171.69,171.63,6.8261]
[1746813732874,5.825,171.67,171.63,6.8261]
[1746813734179,5.8252,171.66,171.63,6.8261]
[1746813734575,59.5,171.69,171.64,5.8258]
[1746813734776,5.8246,171.68,171.64,5.8258]
[1746813735079,59.5,171.69,171.64,5.8258]
[1746813735482,5.8248,171.67,171.63,6.826]
[1746813735779,29.96,171.69,171.63,1.0]
[1746813735980,29.44,171.68,171.63,1.0]
[1746813736480,35.2647,171.68,171.64,5.8255]
[1746813736674,29.44,171.68,171.64,5.8255]
[1746813736983,29.44,171.68,171.63,1.0]
[1746813737679,5.8258,171.64,171.63,1.0]
[1746813737881,35.7858,171.64,171.63,1.0]
[1746813740484,29.96,171.64,171.63,1.0]
[1746813740989,35.7858,171.64,171.63,1.0]
[1746813741477,29.96,171.64,171.63,1.0]
[1746813743286,35.7858,171.64,171.63,1.0]
[1746813743483,29.96,171.64,171.63,1.0]
[1746813743782,503.12,171.7,171.63,1.0]
[1746813744086,59.28,171.69,171.63,1.0]
[1746813744488,5.8258,171.64,171.63,1.0]
[1746813744690,35.8058,171.64,171.63,1.0]
[1746813745587,59.28,171.64,171.55,5.8287]
[1746813745984,15.29281609,171.63,171.52,150.8294798]
[1746813746291,15.29281609,171.63,171.51,1.0]
[1746813746292,15.29281609,171.59,171.51,1.0]
[1746813746490,59.28,171.58,171.51,1.0]
[1746813746686,5.8299,171.52,171.51,1.0]
[1746813746890,35.8099,171.52,171.51,1.0]
[1746813747490,29.98,171.52,171.51,1.0]
[1746813748790,29.98,171.52,171.51,6.8302]
[1746813749191,29.98,171.52,171.51,1.0]
[1746813752098,35.8099,171.52,171.51,1.0]
[1746813752595,5.8308,171.5,171.46,1.0]
[1746813752797,29.98,171.52,171.46,1.0]
[1746813753793,5.8316,171.47,171.46,1.0]
[1746813754095,64.2316,171.47,171.46,1.0]
[1746813757599,5.8314,171.48,171.46,1.0]
[1746813757799,58.32,171.47,171.46,1.0]
[1746813758194,64.1516,171.47,171.46,1.0]
[1746813760203,5.8312,171.49,171.46,1.0]
[1746813760401,58.34,171.48,171.46,1.0]
[1746813760902,29.26,171.49,171.46,1.0]
[1746813761100,58.34,171.5,171.47,5.8315]
[1746813761803,58.34,171.5,171.46,1.0]
[1746813762602,5.8304,171.51,171.46,1.0]
[1746813762804,29.26,171.5,171.46,1.0]
[1746813763102,35.0907,171.5,171.47,5.8313]
[1746813763607,29.26,171.5,171.46,1.0]
[1746813764205,5.8316,171.47,171.46,1.0]
[1746813765207,5.8331,171.43,171.37,391.8788]
[1746813765409,5.8331,171.43,171.37,5.6188]
[1746813765601,29.26,171.44,171.37,5.6188]
[1746813765906,35.0926,171.44,171.37,5.6188]
[1746813766206,29.26,171.44,171.37,5.6188]
[1746813766803,29.26,171.44,171.37,3.691]
[1746813767003,29.26,171.44,171.37,9.5259]
[1746813767304,29.26,171.44,171.37,3.691]
[1746813767702,29.26,171.44,171.37,9.5259]
[1746813768707,5.8339,171.41,171.37,9.5259]
[1746813768907,5.8339,171.41,171.37,3.691]
[1746813768908,29.06,171.41,171.37,3.691]
[1746813769612,29.28,171.46,171.37,3.691]
[1746813769802,35.1121,171.46,171.37,3.691]
[1746813770003,29.28,171.46,171.43,5.8326]
[1746813770204,29.28,171.46,171.37,360.691]
[1746813770606,29.28,171.46,171.45,5.8323]
[1746813771509,23.2658,171.46,171.45,5.8323]
[1746813771706,29.06,171.48,171.47,5.8316]
[1746813772208,504.04,171.55,171.48,5.8311]
[1746813772408,58.34,171.54,171.48,5.8311]
[1746813772805,58.34,171.54,171.47,5.8315]
[1746813773009,58.34,171.54,171.4,386.06]
[1746813773207,58.34,171.54,171.4,29.06]
[1746813773410,58.34,171.54,171.44,5.8323]
[1746813773610,73.63281609,171.54,171.44,5.8323]
[1746813773804,5.8315,171.48,171.44,5.8323]
[1746813774109,29.28,171.47,171.44,5.8323]
[1746813775013,35.1116,171.47,171.44,5.8323]
[1746813776810,29.28,171.47,171.44,5.8323]
[1746813777508,35.1116,171.47,171.44,5.8323]
[1746813778311,5.832,171.46,171.43,5.8328]
[1746813778516,29.28,171.47,171.39,1.9246]
[1746813778813,29.28,171.47,171.42,5.833]
[1746813779020,5.8323,171.45,171.42,5.833]
[1746813779512,5.8323,171.45,171.39,1.9246]
[1746813779814,5.832,171.46,171.39,1.9246]
[1746813780010,29.28,171.47,171.39,1.9246]
[1746813780414,5.8325,171.45,171.4,1.0]
[1746813780917,5.8321,171.46,171.43,5.8329]
[1746813781211,29.28,171.47,171.4,1.0]
[1746813781723,29.06,171.51,171.4,1.0]
[1746813782013,5.8297,171.53,171.4,1.0]
[1746813782216,29.06,171.52,171.4,1.0]
[1746813782406,29.06,171.52,171.51,5.8302]
[1746813784219,29.06,171.52,171.46,1.9857]
[1746813785017,29.06,171.52,171.51,5.8302]
[1746813785921,29.06,171.52,171.5,5.8304]
[1746813786121,29.06,171.52,171.46,1.9857]
[1746813787122,5.8305,171.51,171.46,1.9857]
[1746813787320,29.06,171.52,171.46,1.9857]
[1746813787817,29.06,171.52,171.5,5.8304]
[1746813788020,29.06,171.52,171.46,1.9857]
[1746813788421,34.8899,171.52,171.5,5.8305]
[1746813788822,5.8302,171.51,171.46,1.9857]
[1746813789322,5.8302,171.51,171.48,5.8311]
[1746813789522,34.89,171.52,171.46,1.9857]
[1746813790026,34.89,171.52,171.49,5.8307]
[1746813790526,29.06,171.52,171.46,1.9857]
[1746813790826,58.12,171.52,171.46,1.9857]
[1746813791127,5.8308,171.5,171.47,5.8313]
[1746813792128,5.8308,171.5,171.46,1.9857]
[1746813792129,5.8308,171.5,171.48,5.8312]
[1746813792727,5.8308,171.5,171.47,5.8315]
[1746813793129,5.8304,171.51,171.46,1.9857]
[1746813793327,5.8304,171.51,171.48,5.8311]
[1746813793628,5.8306,171.5,171.48,5.8311]
[1746813794524,5.8304,171.51,171.48,5.8311]
[1746813795529,5.8306,171.5,171.47,5.8315]
[1746813796028,58.12,171.52,171.47,5.8315]
[1746813796230,5.8303,171.51,171.48,5.8311]
[1746813796426,5.8303,171.51,171.45,3.8806]
[1746813796732,5.8306,171.5,171.47,5.8314]
[1746813797030,58.12,171.52,171.45,3.8806]
[1746813797226,5.8315,171.48,171.42,1.9299]
[1746813797434,29.04,171.47,171.42,1.9299]
[1746813797825,34.8716,171.47,171.44,5.8323]
[1746813798328,29.04,171.47,171.42,1.9299]
[1746813798929,29.04,171.47,171.45,5.8321]
[1746813799132,34.8716,171.47,171.4,1.0]
[1746813799322,29.04,171.47,171.4,1.0]
[1746813799528,29.04,171.47,171.43,5.8327]
[1746813799731,5.8321,171.46,171.43,5.8327]
[1746813800229,29.04,171.47,171.42,5.8331]
[1746813800530,5.8325,171.45,171.42,5.8331]
[1746813801029,5.8327,171.44,171.41,5.8335]
[1746813801229,58.08,171.47,171.4,1.0]
[1746813801626,58.08,171.47,171.44,5.8326]
[1746813801828,15.29281609,171.53,171.4,1.0]
[1746813802027,58.1,171.52,171.4,1.0]
[1746813802231,5.8312,171.49,171.45,5.832]
[1746813802429,58.1,171.52,171.45,5.832]
[1746813802632,58.1,171.52,171.4,30.04]
[1746813803136,58.1,171.52,171.4,387.04]
[1746813803326,58.1,171.52,171.49,5.8307]
[1746813803727,29.06,171.52,171.5,5.8305]
[1746813804427,29.06,171.52,171.45,29.04]
[1746813804728,29.06,171.52,171.4,358.0]
[1746813804934,5.8318,171.47,171.4,1.0]
[1746813805132,29.06,171.46,171.4,1.0]
[1746813805328,29.06,171.45,171.4,1.0]
[1746813806435,34.8925,171.45,171.43,5.8329]
[1746813806635,29.06,171.45,171.43,5.8329]
[1746813807030,34.8925,171.45,171.42,5.8332]
[1746813807231,34.8925,171.45,171.4,1.0]
[1746813807433,29.06,171.45,171.4,1.0]
[1746813808131,29.06,171.45,171.44,5.8326]
[1746813808337,29.06,171.45,171.4,1.0]
[1746813809239,29.06,171.45,171.44,5.8326]
[1746813809844,29.04,171.49,171.48,5.8312]
[1746813810046,29.04,171.54,171.44,29.04]
[1746813810337,29.04,171.54,171.52,5.8297]
[1746813810534,29.04,171.54,171.45,5.7131]
[1746813811237,29.04,171.54,171.45,35.2931]
[1746813811433,29.04,171.54,171.45,1.9428]
[1746813811633,5.83,171.52,171.45,1.9428]
[1746813811829,58.6,171.54,171.45,1.9428]
[1746813812439,29.04,171.54,171.45,1.9428]
[1746813812735,29.04,171.54,171.53,5.8295]
[1746813814938,29.04,171.58,171.49,29.56]
[1746813815128,29.04,171.58,171.49,386.56]
[1746813815331,29.04,171.58,171.5,1.9657]
[1746813815834,29.04,171.58,171.5,3.7812]
[1746813816237,29.04,171.58,171.49,357.0]
[1746813817139,29.04,171.58,171.48,5.8311]
[1746813817341,29.04,171.58,171.45,1.9428]
[1746813817744,5.8298,171.53,171.49,5.8307]
[1746813817942,29.04,171.52,171.49,5.8307]
[1746813818138,29.04,171.52,171.45,1.9428]
[1746813818339,29.04,171.52,171.51,5.8302]
[1746813819039,137.21966984,171.67,171.51,492.16]
[1746813819241,137.21966984,171.67,171.53,15.34448442]
[1746813819542,137.21966984,171.67,171.64,5.8258]
[1746813820239,137.21966984,171.66,171.6,58.36]
[1746813820641,137.21966984,171.66,171.61,5.8266]
[1746813820841,137.21966984,171.66,171.6,58.36]
[1746813821344,137.21966984,171.66,171.6,29.04]
[1746813821543,137.21966984,171.66,171.57,29.26]
[1746813821747,143.04486984,171.66,171.59,5.8274]
[1746813822243,143.04486984,171.66,171.6,5.8271]
[1746813822539,137.21966984,171.66,171.55,58.26]
[1746813822749,29.04,171.67,171.55,58.26]
[1746813823744,34.8649,171.67,171.55,58.26]
[1746813824240,29.04,171.67,171.63,5.8259]
[1746813824445,29.04,171.67,171.55,415.26]
[1746813825139,29.26,171.69,171.55,415.26]
[1746813825343,29.26,171.69,171.57,15.34448442]
[1746813825841,29.26,171.69,171.66,5.8249]
[1746813826143,29.26,171.69,171.62,29.16]
[1746813826347,34.8435,171.71,171.62,29.16]
[1746813826549,29.02,171.71,171.62,29.16]
[1746813826748,5.8241,171.7,171.65,5.8252]
[1746813827248,29.02,171.71,171.62,29.14]
[1746813827449,5.8248,171.67,171.57,372.34448442]
[1746813827746,29.02,171.71,171.58,58.14]
[1746813827943,1.8499,171.7,171.62,5.8263]
[1746813828249,1.8499,171.7,171.58,58.14]
[1746813828744,5.825,171.67,171.63,5.8259]
[1746813828945,1.8499,171.7,171.63,5.8259]
[1746813829142,1.8499,171.7,171.58,58.14]
[1746813829945,29.02,171.71,171.59,5.5882]
[1746813830247,29.02,171.71,171.59,362.5882]
[1746813830450,29.02,171.71,171.7,5.8238]
[1746813830750,29.02,171.71,171.64,29.08]
[1746813831044,29.02,171.71,171.69,5.824]
[1746813831249,29.02,171.71,171.64,29.08]
[1746813831453,30.9334,171.76,171.64,29.08]
[1746813831747,29.0,171.76,171.64,29.08]
[1746813832147,5.8222,171.75,171.64,29.08]
[1746813832451,29.0,171.76,171.64,29.08]
[1746813832849,5.823,171.73,171.7,5.8237]
[1746813833349,5.823,171.73,171.64,386.08]
[1746813834252,5.823,171.73,171.69,5.8239]
[1746813834453,5.823,171.73,171.64,386.08]
[1746813834645,5.8232,171.72,171.64,386.08]
[1746813835152,5.8235,171.71,171.64,386.08]
[1746813835456,5.8235,171.71,171.67,5.8246]
[1746813835650,5.8235,171.71,171.64,386.08]
[1746813835850,5.8232,171.72,171.64,386.08]
[1746813836153,5.8232,171.72,171.68,5.8242]
[1746813836657,5.8235,171.71,171.68,5.8242]
[1746813837557,5.8232,171.72,171.69,5.824]
[1746813837756,5.8232,171.72,171.64,386.08]
[1746813837952,29.0,171.76,171.64,386.08]
[1746813838153,5.8222,171.75,171.64,386.08]
[1746813838352,58.02,171.76,171.64,386.08]
[1746813839255,29.0,171.76,171.64,386.08]
[1746813839651,29.0,171.76,171.73,5.8224]
[1746813839957,29.02,171.84,171.71,29.02]
[1746813840151,29.02,171.83,171.72,63.6476]
[1746813840353,29.02,171.87,171.73,26.98998442]
[1746813840753,44.36448442,171.87,171.72,5.6076]
[1746813840952,44.36448442,171.87,171.74,29.02]
[1746813841146,5.8206,171.8,171.76,5.8217]
[1746813841350,5.8206,171.8,171.74,29.02]
[1746813841559,29.02,171.81,171.74,29.02]
[1746813841764,5.8209,171.79,171.74,29.02]
[1746813842055,29.02,171.81,171.74,29.02]
[1746813842256,5.822,171.76,171.72,7.6608]
[1746813842448,29.02,171.81,171.69,58.04]
[1746813842648,29.02,171.81,171.68,29.02]
[1746813842856,15.34448442,171.79,171.67,30.8578]
[1746813843456,5.823,171.73,171.69,5.824]
[1746813843657,29.02,171.74,171.66,1.819]
[1746813843949,29.02,171.73,171.66,1.819]
[1746813844154,5.8233,171.72,171.66,1.819]
[1746813844357,29.02,171.73,171.66,1.819]
[1746813845359,29.02,171.73,171.71,5.8234]
[1746813845661,29.02,171.73,171.66,1.819]
[1746813845865,29.02,171.73,171.68,5.8242]
[1746813846257,29.02,171.73,171.67,5.8246]
[1746813846461,5.8239,171.7,171.63,357.0]
[1746813846959,5.8243,171.69,171.63,357.0]
[1746813847155,29.02,171.73,171.63,357.0]
[1746813847659,5.8241,171.7,171.63,357.0]
[1746813847853,29.02,171.7,171.65,5.8254]
[1746813848361,29.02,171.7,171.62,32.8692]
[1746813849161,34.8438,171.7,171.62,32.8692]
[1746813850361,29.02,171.7,171.57,487.93853355]
[1746813850551,29.02,171.7,171.58,5.5392]
[1746813850756,29.02,171.7,171.64,5.8255]
[1746813851861,29.02,171.7,171.58,362.5392]
[1746813852064,29.02,171.7,171.58,3.6356]
[1746813852257,5.826,171.64,171.6,5.8272]
[1746813852456,29.02,171.64,171.58,3.6356]
[1746813853366,5.8262,171.63,171.59,5.8272]
[1746813853662,29.02,171.64,171.58,3.6356]
[1746813854059,34.8461,171.64,171.6,5.8269]
[1746813854259,29.02,171.64,171.6,5.8269]
[1746813854765,34.8459,171.64,171.6,5.8269]
[1746813854957,29.02,171.64,171.58,3.6356]
[1746813855259,34.8459,171.64,171.56,29.02]
[1746813855968,5.8265,171.63,171.56,29.02]
[1746813856159,5.8265,171.63,171.59,5.8275]
[1746813857365,5.8269,171.61,171.57,5.8282]
[1746813857560,5.8269,171.61,171.54,29.16]
[1746813857866,5.8278,171.59,171.55,5.8287]
[1746813858068,53.9360207,171.64,171.55,5.8287]
[1746813858265,53.9360207,171.64,171.53,1.922]
[1746813858460,53.9360207,171.64,171.5,29.02]
[1746813858662,53.9360207,171.64,171.49,1.9481]
[1746813858864,24.9160207,171.6,171.5,5.8305]
[1746813859065,63.724,171.59,171.47,3.6476]
[1746813859267,63.724,171.59,171.47,1.8119]
[1746813859560,63.724,171.59,171.42,389.8038]
[1746813859765,63.724,171.59,171.42,420.8016]
[1746813859965,63.724,171.59,171.42,420.7816]
[1746813860156,5.8302,171.51,171.47,5.8315]
[1746813860358,34.8502,171.51,171.47,5.8315]
[1746813860759,5.8307,171.5,171.47,5.8315]
[1746813861668,29.02,171.51,171.42,5.7016]
[1746813862062,29.02,171.51,171.48,5.831]
[1746813862963,29.02,171.51,171.49,5.8308]
[1746813864869,29.02,171.51,171.5,5.8306]
[1746813865069,29.02,171.51,171.42,3.7535]
[1746813865262,29.02,171.51,171.43,1.8342]
[1746813865570,17.49,171.66,171.43,1.8342]
[1746813865571,81.56962339,171.68,171.5,24.97113091]
[1746813865768,1.16502592,171.67,171.52,15.34555763]
[1746813865962,110.60962339,171.68,171.53,59.9142]
[1746813867269,29.04,171.68,171.53,59.9142]
[1746813867570,34.8647,171.68,171.63,5.8259]
[1746813867869,29.04,171.68,171.53,96.51299791]
[1746813868465,29.04,171.68,171.54,62.0]
[1746813869064,29.04,171.68,171.53,42.5327]
[1746813869369,32.8613,171.68,171.63,5.826]
[1746813869871,32.8613,171.68,171.53,13.4927]
[1746813870170,5.8254,171.66,171.54,29.02]
[1746813870659,5.8254,171.66,171.62,5.8263]
[1746813871669,5.8254,171.66,171.63,5.8261]
[1746813872473,5.8249,171.67,171.63,5.8261]
[1746813872674,32.8613,171.68,171.54,386.02]
[1746813873073,5.8252,171.66,171.54,386.02]
[1746813873271,32.8613,171.68,171.54,386.02]
[1746813873675,5.8252,171.66,171.62,5.8264]
[1746813874375,5.8255,171.65,171.62,5.8264]
[1746813874567,29.02,171.64,171.54,386.02]
[1746813874873,29.02,171.63,171.53,1.8342]
[1746813875173,29.02,171.63,171.59,5.8273]
[1746813875775,34.8462,171.63,171.59,5.8273]
[1746813879180,29.02,171.63,171.53,1.8342]
[1746813879385,29.02,171.64,171.53,1.8342]
[1746813880087,29.02,171.64,171.54,11.6584]
[1746813880383,29.02,171.64,171.55,29.02]
[1746813880588,29.02,171.64,171.61,5.8266]
[1746813881690,29.02,171.64,171.62,5.8265]